[Event "Titled Tuesday Blitz March 01 Early 2022"]
[White "Poormosavi, Seyed Kian"]
[Black "Abdyzhapar, Asylbek"]
[WhiteFideId "12585807"]
[BlackFideId "13800337"]
[WhiteElo "2116"]
[BlackElo "2331"]
[Result "0-1"]
[Round "06"]
[TimeControl "180+1"]
[Date "2022.03.01"]
[WhiteClock "0:00:04"]
[BlackClock "0:01:15"]

1. Nf3 {[%clk 0:03:00]}  g6 {[%clk 0:02:58]} 2. g3 {[%clk 0:03:00]}  Bg7 {[%clk 0:02:58]} 3. Bg2 {[%clk 0:03:01]}  Nf6 {[%clk 0:02:59]} 4. O-O {[%clk 0:03:01]}  O-O {[%clk 0:03:00]} 5. d4 {[%clk 0:03:02]}  d6 {[%clk 0:03:00]} 6. c4 {[%clk 0:03:02]}  a6 {[%clk 0:02:59]} 7. Nc3 {[%clk 0:03:01]}  Nc6 {[%clk 0:03:00]} 8. e4 {[%clk 0:03:01]}  Bg4 {[%clk 0:02:57]} 9. h3 {[%clk 0:02:56]}  Bxf3 {[%clk 0:02:57]} 10. Bxf3 {[%clk 0:02:57]}  e5 {[%clk 0:02:57]} 11. d5 {[%clk 0:02:58]}  Nd4 {[%clk 0:02:57]} 12. Bg2 {[%clk 0:02:58]}  c5 {[%clk 0:02:53]} 13. dxc6 {[%clk 0:02:54]}  bxc6 {[%clk 0:02:52]} 14. b4 {[%clk 0:02:53]}  h6 {[%clk 0:02:43]} 15. Be3 {[%clk 0:02:42]}  c5 {[%clk 0:02:42]} 16. Nd5 {[%clk 0:02:41]}  Nxd5 {[%clk 0:02:42]} 17. cxd5 {[%clk 0:02:40]}  cxb4 {[%clk 0:02:41]} 18. Qa4 {[%clk 0:02:39]}  a5 {[%clk 0:02:36]} 19. Kh2 {[%clk 0:02:29]}  Ne2 {[%clk 0:02:33]} 20. a3 {[%clk 0:02:22]}  Nc3 {[%clk 0:02:30]} 21. Qb3 {[%clk 0:02:21]}  Rb8 {[%clk 0:02:29]} 22. axb4 {[%clk 0:02:16]}  axb4 {[%clk 0:02:29]} 23. Ra7 {[%clk 0:02:15]}  f5 {[%clk 0:02:25]} 24. exf5 {[%clk 0:02:10]}  gxf5 {[%clk 0:02:25]} 25. f4 {[%clk 0:02:09]}  e4 {[%clk 0:02:24]} 26. Rfa1 {[%clk 0:02:04]}  Rf7 {[%clk 0:02:20]} 27. Rxf7 {[%clk 0:02:02]}  Kxf7 {[%clk 0:02:20]} 28. Ra7+ {[%clk 0:02:02]}  Kg8 {[%clk 0:02:20]} 29. Qc4 {[%clk 0:01:42]}  b3 {[%clk 0:02:13]} 30. Rxg7+ {[%clk 0:01:40]}  Kxg7 {[%clk 0:02:13]} 31. Bd4+ {[%clk 0:01:40]}  Kg6 {[%clk 0:02:11]} 32. Bxc3 {[%clk 0:01:38]}  b2 {[%clk 0:01:58]} 33. Qd4 {[%clk 0:01:37]}  Qh8 {[%clk 0:01:52]} 34. Qxh8 {[%clk 0:01:28]}  Rxh8 {[%clk 0:01:52]} 35. Bxb2 {[%clk 0:01:28]}  Ra8 {[%clk 0:01:47]} 36. Bc3 {[%clk 0:01:25]}  Rb8 {[%clk 0:01:45]} 37. g4 {[%clk 0:01:12]}  Rb3 {[%clk 0:01:44]} 38. Be1 {[%clk 0:01:03]}  Rd3 {[%clk 0:01:44]} 39. h4 {[%clk 0:00:49]}  h5 {[%clk 0:01:36]} 40. gxf5+ {[%clk 0:00:44]}  Kxf5 {[%clk 0:01:36]} 41. Bg3 {[%clk 0:00:43]}  Rxd5 {[%clk 0:01:34]} 42. Bh3+ {[%clk 0:00:43]}  Kf6 {[%clk 0:01:34]} 43. Bd7 {[%clk 0:00:37]}  Rd2+ {[%clk 0:01:33]} 44. Kh3 {[%clk 0:00:37]}  d5 {[%clk 0:01:31]} 45. Be8 {[%clk 0:00:37]}  d4 {[%clk 0:01:28]} 46. Bxh5 {[%clk 0:00:37]}  e3 {[%clk 0:01:28]} 47. f5 {[%clk 0:00:27]}  e2 {[%clk 0:01:21]} 48. Kg4 {[%clk 0:00:12]}  Rd1 {[%clk 0:01:16]} 49. Kf4 {[%clk 0:00:06]}  e1=Q {[%clk 0:01:14]} 50. Bxe1 {[%clk 0:00:04]}  Rxe1 {[%clk 0:01:15]} 51. Bf3 {[%clk 0:00:04]}  d3 {[%clk 0:01:15]} 0-1


[Site "https://www.chess.com"]

[Event "Titled Tuesday Blitz March 01 Early 2022"]
[White "Quirke, Jeffrey"]
[Black "Batsiashvili, Nino"]
[WhiteFideId "2013029"]
[BlackFideId "13602993"]
[WhiteElo "2148"]
[BlackElo "2230"]
[Result "0-1"]
[Round "06"]
[TimeControl "180+1"]
[Date "2022.03.01"]
[WhiteClock "0:00:03"]
[BlackClock "0:00:07"]

1. c4 {[%clk 0:03:00]}  e6 {[%clk 0:02:59]} 2. d4 {[%clk 0:03:00]}  d5 {[%clk 0:03:00]} 3. Nc3 {[%clk 0:03:00]}  Bb4 {[%clk 0:02:59]} 4. cxd5 {[%clk 0:02:59]}  exd5 {[%clk 0:02:59]} 5. Bf4 {[%clk 0:03:00]}  c5 {[%clk 0:02:58]} 6. e3 {[%clk 0:02:57]}  c4 {[%clk 0:02:58]} 7. Nf3 {[%clk 0:02:40]}  Nc6 {[%clk 0:02:56]} 8. Be2 {[%clk 0:02:39]}  Nf6 {[%clk 0:02:56]} 9. O-O {[%clk 0:02:38]}  O-O {[%clk 0:02:51]} 10. Ne5 {[%clk 0:02:36]}  Bf5 {[%clk 0:02:47]} 11. Bg5 {[%clk 0:02:09]}  Bxc3 {[%clk 0:02:41]} 12. bxc3 {[%clk 0:02:08]}  h6 {[%clk 0:02:41]} 13. Bxf6 {[%clk 0:02:05]}  Qxf6 {[%clk 0:02:42]} 14. g4 {[%clk 0:01:36]}  Bh7 {[%clk 0:02:28]} 15. Nd7 {[%clk 0:01:33]}  Qh4 {[%clk 0:02:21]} 16. Nxf8 {[%clk 0:01:30]}  Rxf8 {[%clk 0:02:22]} 17. Bf3 {[%clk 0:01:09]}  Ne7 {[%clk 0:02:20]} 18. Bg2 {[%clk 0:00:55]}  Bd3 {[%clk 0:02:12]} 19. Re1 {[%clk 0:00:28]}  f5 {[%clk 0:02:12]} 20. gxf5 {[%clk 0:00:24]}  Rxf5 {[%clk 0:02:12]} 21. Qd2 {[%clk 0:00:21]}  Be4 {[%clk 0:01:57]} 22. f3 {[%clk 0:00:18]}  Bxf3 {[%clk 0:01:17]} 23. Bxf3 {[%clk 0:00:19]}  Rxf3 {[%clk 0:01:18]} 24. Qg2 {[%clk 0:00:18]}  Rf5 {[%clk 0:01:14]} 25. Kh1 {[%clk 0:00:17]}  Rg5 {[%clk 0:01:11]} 26. Qf3 {[%clk 0:00:17]}  Rf5 {[%clk 0:00:59]} 27. Qg3 {[%clk 0:00:16]}  Qe4+ {[%clk 0:00:56]} 28. Qg2 {[%clk 0:00:15]}  Qd3 {[%clk 0:00:55]} 29. e4 {[%clk 0:00:15]}  Rg5 {[%clk 0:00:52]} 30. Qe2 {[%clk 0:00:13]}  Qxc3 {[%clk 0:00:50]} 31. exd5 {[%clk 0:00:13]}  Rxd5 {[%clk 0:00:18]} 32. Rad1 {[%clk 0:00:08]}  Kh7 {[%clk 0:00:12]} 33. Qe4+ {[%clk 0:00:07]}  Rf5 {[%clk 0:00:12]} 34. Rf1 {[%clk 0:00:06]}  Qh3 {[%clk 0:00:10]} 35. Rxf5 {[%clk 0:00:05]}  Qxf5 {[%clk 0:00:10]} 36. Qxf5+ {[%clk 0:00:05]}  Nxf5 {[%clk 0:00:11]} 37. d5 {[%clk 0:00:06]}  Nd6 {[%clk 0:00:12]} 38. Re1 {[%clk 0:00:05]}  c3 {[%clk 0:00:10]} 39. Rc1 {[%clk 0:00:05]}  Kg6 {[%clk 0:00:10]} 40. Rxc3 {[%clk 0:00:04]}  Kf6 {[%clk 0:00:11]} 41. Rc7 {[%clk 0:00:05]}  g5 {[%clk 0:00:11]} 42. Rd7 {[%clk 0:00:05]}  Ke5 {[%clk 0:00:11]} 43. Rh7 {[%clk 0:00:05]}  Kxd5 {[%clk 0:00:09]} 44. Rxh6 {[%clk 0:00:05]}  b5 {[%clk 0:00:10]} 45. Rg6 {[%clk 0:00:05]}  Ne4 {[%clk 0:00:10]} 46. Rg7 {[%clk 0:00:05]}  a5 {[%clk 0:00:10]} 47. Ra7 {[%clk 0:00:05]}  a4 {[%clk 0:00:10]} 48. Kg2 {[%clk 0:00:05]}  Nc3 {[%clk 0:00:07]} 49. a3 {[%clk 0:00:03]}  Nb1 {[%clk 0:00:07]} 50. Rg7 {[%clk 0:00:03]}  Nxa3 {[%clk 0:00:07]} 51. Rxg5+ {[%clk 0:00:03]}  Kc4 {[%clk 0:00:06]} 52. h4 {[%clk 0:00:04]}  b4 {[%clk 0:00:07]} 53. h5 {[%clk 0:00:03]}  b3 {[%clk 0:00:07]} 54. Rg8 {[%clk 0:00:03]}  b2 {[%clk 0:00:07]} 55. Rb8 {[%clk 0:00:04]}  Nb5 {[%clk 0:00:07]} 56. Rc8+ {[%clk 0:00:03]}  Kb3 {[%clk 0:00:07]} 57. h6 {[%clk 0:00:03]}  b1=Q {[%clk 0:00:07]} 0-1


[Site "https://www.chess.com"]

[Event "Titled Tuesday Blitz March 01 Early 2022"]
[White "Rodchenkov, Sergey D."]
[Black "Todorovic, Bojan"]
[WhiteFideId "4168712"]
[BlackFideId "917087"]
[WhiteElo "2306"]
[BlackElo "2266"]
[Result "0-1"]
[Round "06"]
[TimeControl "180+1"]
[Date "2022.03.01"]
[WhiteClock "0:00:04"]
[BlackClock "0:00:06"]

1. e4 {[%clk 0:03:00]}  e5 {[%clk 0:02:55]} 2. Nf3 {[%clk 0:03:00]}  Nc6 {[%clk 0:02:55]} 3. Bc4 {[%clk 0:03:01]}  Bc5 {[%clk 0:02:53]} 4. d3 {[%clk 0:02:59]}  Nf6 {[%clk 0:02:50]} 5. O-O {[%clk 0:02:59]}  O-O {[%clk 0:02:48]} 6. Nbd2 {[%clk 0:02:56]}  a6 {[%clk 0:02:47]} 7. a4 {[%clk 0:02:56]}  Re8 {[%clk 0:02:44]} 8. c3 {[%clk 0:02:53]}  d6 {[%clk 0:02:37]} 9. h3 {[%clk 0:02:51]}  Be6 {[%clk 0:02:32]} 10. Re1 {[%clk 0:02:43]}  Bxc4 {[%clk 0:02:27]} 11. dxc4 {[%clk 0:02:35]}  a5 {[%clk 0:02:22]} 12. Nf1 {[%clk 0:02:34]}  Ne7 {[%clk 0:02:13]} 13. Ng3 {[%clk 0:02:19]}  h6 {[%clk 0:02:09]} 14. Bd2 {[%clk 0:02:13]}  Qd7 {[%clk 0:02:01]} 15. Qc1 {[%clk 0:02:10]}  Kh7 {[%clk 0:01:58]} 16. Nh4 {[%clk 0:02:02]}  Neg8 {[%clk 0:01:40]} 17. Nhf5 {[%clk 0:01:55]}  h5 {[%clk 0:01:31]} 18. Be3 {[%clk 0:01:27]}  Qc6 {[%clk 0:01:26]} 19. Bxc5 {[%clk 0:01:22]}  Qxc5 {[%clk 0:01:24]} 20. Nxg7 {[%clk 0:00:48]}  Kxg7 {[%clk 0:01:21]} 21. Qg5+ {[%clk 0:00:43]}  Kf8 {[%clk 0:01:06]} 22. Rf1 {[%clk 0:00:30]}  Re6 {[%clk 0:01:01]} 23. Kh1 {[%clk 0:00:21]}  Nh7 {[%clk 0:00:59]} 24. Qxh5 {[%clk 0:00:20]}  Rh6 {[%clk 0:00:59]} 25. Qf5 {[%clk 0:00:21]}  Ne7 {[%clk 0:00:56]} 26. Qg4 {[%clk 0:00:17]}  Nf6 {[%clk 0:00:50]} 27. Qe2 {[%clk 0:00:18]}  Kg7 {[%clk 0:00:40]} 28. f4 {[%clk 0:00:17]}  Rah8 {[%clk 0:00:37]} 29. fxe5 {[%clk 0:00:15]}  Qxe5 {[%clk 0:00:34]} 30. Rf3 {[%clk 0:00:15]}  Rg6 {[%clk 0:00:31]} 31. Qf2 {[%clk 0:00:07]}  Rhh6 {[%clk 0:00:17]} 32. Rf1 {[%clk 0:00:06]}  Kg8 {[%clk 0:00:17]} 33. Kg1 {[%clk 0:00:05]}  Nc6 {[%clk 0:00:15]} 34. Qe3 {[%clk 0:00:05]}  Qc5 {[%clk 0:00:14]} 35. Qxc5 {[%clk 0:00:04]}  dxc5 {[%clk 0:00:14]} 36. Nf5 {[%clk 0:00:04]}  Rh5 {[%clk 0:00:12]} 37. e5 {[%clk 0:00:05]}  Nxe5 {[%clk 0:00:12]} 38. Ne7+ {[%clk 0:00:05]}  Kg7 {[%clk 0:00:11]} 39. R3f2 {[%clk 0:00:04]}  Rgh6 {[%clk 0:00:08]} 40. Nf5+ {[%clk 0:00:04]}  Rxf5 {[%clk 0:00:09]} 41. Rxf5 {[%clk 0:00:04]}  Nfd7 {[%clk 0:00:08]} 42. Rg5+ {[%clk 0:00:04]}  Kf8 {[%clk 0:00:08]} 43. Rgf5 {[%clk 0:00:05]}  f6 {[%clk 0:00:08]} 44. g4 {[%clk 0:00:05]}  Rxh3 {[%clk 0:00:07]} 45. Kg2 {[%clk 0:00:06]}  Rd3 {[%clk 0:00:06]} 46. g5 {[%clk 0:00:06]}  Rd2+ {[%clk 0:00:06]} 47. Kg3 {[%clk 0:00:07]}  Rxb2 {[%clk 0:00:06]} 48. gxf6 {[%clk 0:00:06]}  Kf7 {[%clk 0:00:06]} 49. Rh1 {[%clk 0:00:07]}  Nxf6 {[%clk 0:00:05]} 50. Rh6 {[%clk 0:00:06]}  Nd7 {[%clk 0:00:05]} 51. Rf1 {[%clk 0:00:03]}  Rc2 {[%clk 0:00:04]} 52. Rh7+ {[%clk 0:00:04]}  Ke6 {[%clk 0:00:05]} 53. Rg7 {[%clk 0:00:04]}  Kd6 {[%clk 0:00:05]} 54. Rg6 {[%clk 0:00:04]}  Ke7 {[%clk 0:00:05]} 55. Re1+ {[%clk 0:00:03]}  Kf7 {[%clk 0:00:05]} 56. Rg5 {[%clk 0:00:03]}  Rxc3+ {[%clk 0:00:06]} 57. Kg2 {[%clk 0:00:03]}  Rxc4 {[%clk 0:00:06]} 58. Rd1 {[%clk 0:00:03]}  Rc2+ {[%clk 0:00:06]} 59. Kf3 {[%clk 0:00:03]}  c4 {[%clk 0:00:06]} 60. Rgg1 {[%clk 0:00:02]}  Ke6 {[%clk 0:00:05]} 61. Rg2 {[%clk 0:00:02]}  Ne5+ {[%clk 0:00:06]} 62. Kg3 {[%clk 0:00:02]}  Rxg2+ {[%clk 0:00:06]} 63. Kxg2 {[%clk 0:00:03]}  Nd5 {[%clk 0:00:06]} 64. Kf2 {[%clk 0:00:03]}  c3 {[%clk 0:00:07]} 65. Rc1 {[%clk 0:00:04]}  Nc4 {[%clk 0:00:06]} 0-1


[Site "https://www.chess.com"]

[Event "Titled Tuesday Blitz March 01 Early 2022"]
[White "Rostovtsev, Dmitry"]
[Black "Bortnyk, Olexandr"]
[WhiteFideId "34278320"]
[BlackFideId "14120828"]
[WhiteElo "2218"]
[BlackElo "2723"]
[Result "1/2-1/2"]
[Round "06"]
[TimeControl "180+1"]
[Date "2022.03.01"]
[WhiteClock "0:00:24"]
[BlackClock "0:00:31"]

1. e4 {[%clk 0:03:00]}  Nf6 {[%clk 0:02:59]} 2. e5 {[%clk 0:02:57]}  Nd5 {[%clk 0:02:58]} 3. d4 {[%clk 0:02:57]}  d6 {[%clk 0:02:58]} 4. Nf3 {[%clk 0:02:58]}  dxe5 {[%clk 0:02:58]} 5. Nxe5 {[%clk 0:02:59]}  c6 {[%clk 0:02:58]} 6. Be2 {[%clk 0:02:56]}  Bf5 {[%clk 0:02:58]} 7. O-O {[%clk 0:02:55]}  Nd7 {[%clk 0:02:57]} 8. Nf3 {[%clk 0:02:54]}  e6 {[%clk 0:02:57]} 9. c4 {[%clk 0:02:54]}  N5f6 {[%clk 0:02:56]} 10. Nc3 {[%clk 0:02:53]}  Bd6 {[%clk 0:02:55]} 11. Bg5 {[%clk 0:02:47]}  O-O {[%clk 0:02:54]} 12. Bh4 {[%clk 0:02:46]}  Qc7 {[%clk 0:02:49]} 13. Bg3 {[%clk 0:02:46]}  Bxg3 {[%clk 0:02:45]} 14. hxg3 {[%clk 0:02:47]}  e5 {[%clk 0:02:39]} 15. dxe5 {[%clk 0:02:43]}  Nxe5 {[%clk 0:02:40]} 16. Nxe5 {[%clk 0:02:44]}  Qxe5 {[%clk 0:02:38]} 17. Re1 {[%clk 0:02:44]}  Qc5 {[%clk 0:01:48]} 18. Qb3 {[%clk 0:02:40]}  b6 {[%clk 0:01:29]} 19. Bf3 {[%clk 0:02:39]}  Rac8 {[%clk 0:01:26]} 20. Rad1 {[%clk 0:02:32]}  Be6 {[%clk 0:01:25]} 21. Ne4 {[%clk 0:02:30]}  Qxc4 {[%clk 0:01:14]} 22. Qxc4 {[%clk 0:02:22]}  Bxc4 {[%clk 0:01:13]} 23. Nd6 {[%clk 0:02:23]}  Bxa2 {[%clk 0:01:09]} 24. Nxc8 {[%clk 0:02:22]}  Rxc8 {[%clk 0:01:10]} 25. Ra1 {[%clk 0:02:13]}  Be6 {[%clk 0:01:05]} 26. Rxa7 {[%clk 0:02:13]}  g5 {[%clk 0:01:05]} 27. Rc1 {[%clk 0:02:09]}  c5 {[%clk 0:01:03]} 28. Ra8 {[%clk 0:02:01]}  Rxa8 {[%clk 0:00:59]} 29. Bxa8 {[%clk 0:02:02]}  Kf8 {[%clk 0:01:00]} 30. Ra1 {[%clk 0:01:58]}  Ke7 {[%clk 0:01:00]} 31. Ra6 {[%clk 0:01:58]}  b5 {[%clk 0:01:01]} 32. Ra7+ {[%clk 0:01:52]}  Kd6 {[%clk 0:01:00]} 33. Bf3 {[%clk 0:01:52]}  g4 {[%clk 0:00:58]} 34. Be2 {[%clk 0:01:49]}  c4 {[%clk 0:00:59]} 35. f3 {[%clk 0:01:49]}  h5 {[%clk 0:00:59]} 36. Kf2 {[%clk 0:01:48]}  Kc5 {[%clk 0:00:59]} 37. Rb7 {[%clk 0:01:42]}  Nd5 {[%clk 0:00:55]} 38. b3 {[%clk 0:01:31]}  Kc6 {[%clk 0:00:38]} 39. Rxb5 {[%clk 0:01:04]}  Kxb5 {[%clk 0:00:32]} 40. bxc4+ {[%clk 0:01:03]}  Kc5 {[%clk 0:00:33]} 41. cxd5 {[%clk 0:01:03]}  Kxd5 {[%clk 0:00:33]} 42. Ke3 {[%clk 0:01:02]}  Ke5 {[%clk 0:00:33]} 43. Kf2 {[%clk 0:01:02]}  Kd4 {[%clk 0:00:33]} 44. Bd1 {[%clk 0:01:01]}  Bf5 {[%clk 0:00:30]} 45. Bb3 {[%clk 0:00:59]}  Be6 {[%clk 0:00:31]} 46. Bd1 {[%clk 0:00:59]}  Kd3 {[%clk 0:00:31]} 47. Ba4 {[%clk 0:00:56]}  Kd2 {[%clk 0:00:25]} 48. Bb5 {[%clk 0:00:55]}  Kc3 {[%clk 0:00:25]} 49. Ba6 {[%clk 0:00:56]}  Kd4 {[%clk 0:00:26]} 50. Be2 {[%clk 0:00:52]}  Ke5 {[%clk 0:00:26]} 51. Bd1 {[%clk 0:00:51]}  Kf5 {[%clk 0:00:26]} 52. Bc2+ {[%clk 0:00:50]}  Kg5 {[%clk 0:00:26]} 53. Bd1 {[%clk 0:00:47]}  Bc8 {[%clk 0:00:25]} 54. Be2 {[%clk 0:00:47]}  Bb7 {[%clk 0:00:25]} 55. Bd1 {[%clk 0:00:46]}  f6 {[%clk 0:00:26]} 56. Be2 {[%clk 0:00:46]}  Bc6 {[%clk 0:00:26]} 57. Bd1 {[%clk 0:00:47]}  Bb5 {[%clk 0:00:27]} 58. Bc2 {[%clk 0:00:43]}  Bc4 {[%clk 0:00:27]} 59. Bb1 {[%clk 0:00:42]}  Bf7 {[%clk 0:00:26]} 60. Bc2 {[%clk 0:00:42]}  Be6 {[%clk 0:00:26]} 61. Bd1 {[%clk 0:00:42]}  Bf5 {[%clk 0:00:26]} 62. Be2 {[%clk 0:00:42]}  Bc2 {[%clk 0:00:26]} 63. Bb5 {[%clk 0:00:41]}  f5 {[%clk 0:00:27]} 64. Be2 {[%clk 0:00:40]}  Ba4 {[%clk 0:00:27]} 65. Bd3 {[%clk 0:00:40]}  Be8 {[%clk 0:00:27]} 66. Be2 {[%clk 0:00:39]}  Bc6 {[%clk 0:00:28]} 67. Bd1 {[%clk 0:00:38]}  Bb5 {[%clk 0:00:27]} 68. Bc2 {[%clk 0:00:36]}  Ba6 {[%clk 0:00:27]} 69. Bb1 {[%clk 0:00:34]}  Bb7 {[%clk 0:00:27]} 70. Bc2 {[%clk 0:00:34]}  gxf3 {[%clk 0:00:26]} 71. gxf3 {[%clk 0:00:32]}  f4 {[%clk 0:00:27]} 72. gxf4+ {[%clk 0:00:29]}  Kxf4 {[%clk 0:00:28]} 73. Kg2 {[%clk 0:00:30]}  Bxf3+ {[%clk 0:00:28]} 74. Kh2 {[%clk 0:00:30]}  Bg4 {[%clk 0:00:28]} 75. Bg6 {[%clk 0:00:30]}  h4 {[%clk 0:00:27]} 76. Be8 {[%clk 0:00:31]}  Kg5 {[%clk 0:00:28]} 77. Ba4 {[%clk 0:00:31]}  Bh5 {[%clk 0:00:29]} 78. Bb3 {[%clk 0:00:30]}  Bf3 {[%clk 0:00:29]} 79. Ba4 {[%clk 0:00:24]}  Bh5 {[%clk 0:00:30]} 80. Bb3 {[%clk 0:00:24]}  Bf7 {[%clk 0:00:31]} 81. Bxf7 {[%clk 0:00:24]}  h3 {[%clk 0:00:31]} 82. Kxh3 {[%clk 0:00:24]} 1/2-1/2


[Site "https://www.chess.com"]

[Event "Titled Tuesday Blitz March 01 Early 2022"]
[White "Sarana, Alexey"]
[Black "Ohanyan, Emin"]
[WhiteFideId "24133795"]
[BlackFideId "13312022"]
[WhiteElo "2665"]
[BlackElo "1809"]
[Result "1-0"]
[Round "06"]
[TimeControl "180+1"]
[Date "2022.03.01"]
[WhiteClock "0:00:58"]
[BlackClock "0:00:01"]

1. d3 {[%clk 0:02:56]}  e5 {[%clk 0:02:59]} 2. c4 {[%clk 0:02:56]}  Nf6 {[%clk 0:02:58]} 3. Nf3 {[%clk 0:02:57]}  Nc6 {[%clk 0:02:58]} 4. a3 {[%clk 0:02:56]}  a5 {[%clk 0:02:54]} 5. Nc3 {[%clk 0:02:56]}  d5 {[%clk 0:02:53]} 6. cxd5 {[%clk 0:02:55]}  Nxd5 {[%clk 0:02:54]} 7. e4 {[%clk 0:02:56]}  Nf6 {[%clk 0:02:37]} 8. Be2 {[%clk 0:02:56]}  Bc5 {[%clk 0:02:37]} 9. Be3 {[%clk 0:02:56]}  Qe7 {[%clk 0:02:20]} 10. Rc1 {[%clk 0:02:54]}  Nd4 {[%clk 0:02:02]} 11. Bxd4 {[%clk 0:02:51]}  exd4 {[%clk 0:01:53]} 12. Nb5 {[%clk 0:02:50]}  Bg4 {[%clk 0:01:31]} 13. Nfxd4 {[%clk 0:02:33]}  Bxe2 {[%clk 0:01:18]} 14. Qxe2 {[%clk 0:02:34]}  g6 {[%clk 0:01:09]} 15. O-O {[%clk 0:02:28]}  c6 {[%clk 0:01:05]} 16. Nb3 {[%clk 0:02:20]}  Bb6 {[%clk 0:00:52]} 17. Nc3 {[%clk 0:02:19]}  h5 {[%clk 0:00:50]} 18. h3 {[%clk 0:02:18]}  O-O {[%clk 0:00:39]} 19. Na4 {[%clk 0:02:11]}  Ba7 {[%clk 0:00:36]} 20. Nd2 {[%clk 0:02:09]}  Nd7 {[%clk 0:00:29]} 21. Nf3 {[%clk 0:02:08]}  Ne5 {[%clk 0:00:27]} 22. Nc3 {[%clk 0:02:03]}  Rad8 {[%clk 0:00:26]} 23. Rcd1 {[%clk 0:02:00]}  Rd7 {[%clk 0:00:25]} 24. Kh1 {[%clk 0:01:47]}  Rfd8 {[%clk 0:00:25]} 25. Nxe5 {[%clk 0:01:47]}  Qxe5 {[%clk 0:00:25]} 26. f4 {[%clk 0:01:48]}  Qe7 {[%clk 0:00:23]} 27. e5 {[%clk 0:01:46]}  f5 {[%clk 0:00:15]} 28. Qf3 {[%clk 0:01:37]}  Bd4 {[%clk 0:00:14]} 29. Rd2 {[%clk 0:01:32]}  Qe6 {[%clk 0:00:15]} 30. Ne2 {[%clk 0:01:31]}  c5 {[%clk 0:00:15]} 31. Rc1 {[%clk 0:01:27]}  b6 {[%clk 0:00:15]} 32. b4 {[%clk 0:01:21]}  axb4 {[%clk 0:00:13]} 33. axb4 {[%clk 0:01:21]}  Ra7 {[%clk 0:00:14]} 34. bxc5 {[%clk 0:01:18]}  bxc5 {[%clk 0:00:15]} 35. Nxd4 {[%clk 0:01:15]}  Rxd4 {[%clk 0:00:10]} 36. Rxc5 {[%clk 0:01:14]}  Ra1+ {[%clk 0:00:11]} 37. Kh2 {[%clk 0:01:15]}  Qb6 {[%clk 0:00:11]} 38. Rdc2 {[%clk 0:01:11]}  Rd7 {[%clk 0:00:05]} 39. Qc6 {[%clk 0:00:58]}  Qb1 {[%clk 0:00:01]} 40. Qxg6+ {[%clk 0:00:57]}  Kf8 {[%clk 0:00:01]} 41. Rc8+ {[%clk 0:00:58]} 1-0


[Site "https://www.chess.com"]

[Event "Titled Tuesday Blitz March 01 Early 2022"]
[White "Shuvalova, Polina"]
[Black "Sinitsina, Anastassia"]
[WhiteFideId "24171760"]
[BlackFideId "4504640"]
[WhiteElo "2355"]
[BlackElo "2144"]
[Result "1-0"]
[Round "06"]
[TimeControl "180+1"]
[Date "2022.03.01"]
[WhiteClock "0:01:01"]
[BlackClock "0:00:41"]

1. d4 {[%clk 0:03:00]}  Nf6 {[%clk 0:02:59]} 2. Nf3 {[%clk 0:02:59]}  g6 {[%clk 0:03:00]} 3. c4 {[%clk 0:02:57]}  Bg7 {[%clk 0:03:00]} 4. Nc3 {[%clk 0:02:57]}  O-O {[%clk 0:03:00]} 5. Bg5 {[%clk 0:02:57]}  h6 {[%clk 0:02:59]} 6. Bh4 {[%clk 0:02:54]}  d6 {[%clk 0:02:59]} 7. e3 {[%clk 0:02:53]}  c5 {[%clk 0:02:58]} 8. d5 {[%clk 0:02:52]}  Na6 {[%clk 0:02:49]} 9. Be2 {[%clk 0:02:40]}  Nc7 {[%clk 0:02:46]} 10. Qc2 {[%clk 0:02:35]}  b5 {[%clk 0:02:44]} 11. Bxf6 {[%clk 0:02:23]}  Bxf6 {[%clk 0:02:41]} 12. cxb5 {[%clk 0:02:23]}  Bxc3+ {[%clk 0:02:15]} 13. bxc3 {[%clk 0:02:18]}  Nxd5 {[%clk 0:02:15]} 14. c4 {[%clk 0:02:16]}  Qa5+ {[%clk 0:02:06]} 15. Nd2 {[%clk 0:02:13]}  Bf5 {[%clk 0:01:57]} 16. e4 {[%clk 0:02:00]}  Nb4 {[%clk 0:01:55]} 17. Qb1 {[%clk 0:01:46]}  Be6 {[%clk 0:01:20]} 18. a3 {[%clk 0:01:44]}  Na6 {[%clk 0:01:16]} 19. bxa6 {[%clk 0:01:40]}  f5 {[%clk 0:01:12]} 20. exf5 {[%clk 0:01:24]}  Bxf5 {[%clk 0:01:11]} 21. Qc1 {[%clk 0:01:25]}  Qxa6 {[%clk 0:01:03]} 22. O-O {[%clk 0:01:24]}  Rab8 {[%clk 0:01:03]} 23. Qc3 {[%clk 0:01:15]}  Qb6 {[%clk 0:00:58]} 24. Bd3 {[%clk 0:01:12]}  Qb2 {[%clk 0:00:54]} 25. Qxb2 {[%clk 0:01:06]}  Rxb2 {[%clk 0:00:53]} 26. Bxf5 {[%clk 0:01:06]}  Rxf5 {[%clk 0:00:53]} 27. Ne4 {[%clk 0:01:03]}  Re5 {[%clk 0:00:41]} 28. f3 {[%clk 0:01:01]} 1-0


[Site "https://www.chess.com"]

[Event "Titled Tuesday Blitz March 01 Early 2022"]
[White "Shvedova, Alexandra"]
[Black "Iskusnyh, Sergei"]
[WhiteFideId "54154782"]
[BlackFideId "4120027"]
[WhiteElo "1920"]
[BlackElo "2492"]
[Result "1-0"]
[Round "06"]
[TimeControl "180+1"]
[Date "2022.03.01"]
[WhiteClock "0:00:32"]
[BlackClock "0:00:09"]

1. e4 {[%clk 0:03:00]}  e6 {[%clk 0:02:59]} 2. d4 {[%clk 0:03:00]}  d5 {[%clk 0:03:00]} 3. Nd2 {[%clk 0:03:01]}  c5 {[%clk 0:02:58]} 4. exd5 {[%clk 0:03:01]}  exd5 {[%clk 0:02:58]} 5. Ngf3 {[%clk 0:03:01]}  Nc6 {[%clk 0:02:59]} 6. Bb5 {[%clk 0:03:01]}  cxd4 {[%clk 0:02:58]} 7. O-O {[%clk 0:02:58]}  Bd6 {[%clk 0:02:58]} 8. Nxd4 {[%clk 0:02:54]}  Ne7 {[%clk 0:02:57]} 9. N2f3 {[%clk 0:02:51]}  O-O {[%clk 0:02:55]} 10. c3 {[%clk 0:02:47]}  Bg4 {[%clk 0:02:54]} 11. Be2 {[%clk 0:02:36]}  Re8 {[%clk 0:02:47]} 12. Bg5 {[%clk 0:02:33]}  h6 {[%clk 0:02:43]} 13. Bh4 {[%clk 0:02:30]}  Qb6 {[%clk 0:02:39]} 14. Nb5 {[%clk 0:02:09]}  Bf4 {[%clk 0:02:15]} 15. Qa4 {[%clk 0:02:02]}  Ng6 {[%clk 0:02:08]} 16. Bd3 {[%clk 0:01:33]}  Bxf3 {[%clk 0:01:40]} 17. Bxg6 {[%clk 0:01:21]}  fxg6 {[%clk 0:01:33]} 18. Qxf4 {[%clk 0:01:20]}  Be2 {[%clk 0:01:25]} 19. Nc7 {[%clk 0:01:12]}  Bxf1 {[%clk 0:01:04]} 20. Nxa8 {[%clk 0:01:11]}  Rxa8 {[%clk 0:01:03]} 21. Rxf1 {[%clk 0:01:07]}  g5 {[%clk 0:01:03]} 22. Bxg5 {[%clk 0:01:01]}  hxg5 {[%clk 0:01:03]} 23. Qxg5 {[%clk 0:01:02]}  Rd8 {[%clk 0:00:55]} 24. b4 {[%clk 0:00:53]}  Qc7 {[%clk 0:00:48]} 25. Re1 {[%clk 0:00:51]}  a6 {[%clk 0:00:37]} 26. a4 {[%clk 0:00:50]}  b5 {[%clk 0:00:26]} 27. axb5 {[%clk 0:00:50]}  axb5 {[%clk 0:00:27]} 28. h4 {[%clk 0:00:50]}  Qf7 {[%clk 0:00:24]} 29. h5 {[%clk 0:00:47]}  Rf8 {[%clk 0:00:24]} 30. f3 {[%clk 0:00:46]}  Qf6 {[%clk 0:00:23]} 31. Qxd5+ {[%clk 0:00:46]}  Kh8 {[%clk 0:00:22]} 32. Re6 {[%clk 0:00:42]}  Qf4 {[%clk 0:00:08]} 33. Qxc6 {[%clk 0:00:35]}  Rd8 {[%clk 0:00:07]} 34. Re8+ {[%clk 0:00:34]}  Rxe8 {[%clk 0:00:07]} 35. Qxe8+ {[%clk 0:00:35]}  Kh7 {[%clk 0:00:07]} 36. Qe4+ {[%clk 0:00:35]}  Qxe4 {[%clk 0:00:07]} 37. fxe4 {[%clk 0:00:36]}  Kh6 {[%clk 0:00:08]} 38. Kf2 {[%clk 0:00:33]}  Kxh5 {[%clk 0:00:09]} 39. Ke3 {[%clk 0:00:32]}  Kg5 {[%clk 0:00:09]} 40. Kd4 {[%clk 0:00:32]} 1-0


[Site "https://www.chess.com"]